bitfinex/quotes_BTCUSD_20240620
["timestamp","ask_amount","ask_price","bid_price","bid_amount"]
[1718904346944,0.01486,64873.0,64872.0,0.217]
[1718904347148,0.01486,64873.0,64872.0,0.017]
[1718904347613,0.02446174,64873.0,64872.0,0.017]
[1718904348056,0.02346174,64873.0,64872.0,0.007]
[1718904348458,0.01046185,64873.0,64864.0,0.2]
[1718904348648,0.03760185,64872.0,64864.0,0.2]
[1718904348855,0.00960185,64871.0,64864.0,0.2]
[1718904349056,0.00960185,64870.0,64864.0,0.2]
[1718904349257,0.00960185,64869.0,64864.0,0.2]
[1718904349597,0.043,64868.0,64860.0,0.2]
[1718904349877,0.1824,64865.0,64858.0,0.08944314]
[1718904350109,0.13837776,64862.0,64857.0,0.28944314]
[1718904350312,0.1824,64865.0,64857.0,0.08944314]
[1718904350313,0.1479785,64861.0,64857.0,0.08944314]
[1718904350511,0.00960074,64860.0,64856.0,0.08944314]
[1718904350684,0.00960074,64859.0,64856.0,0.08944314]
[1718904350917,0.00960074,64858.0,64857.0,0.08944314]
[1718904351136,0.00960074,64858.0,64856.0,0.08944314]
[1718904351346,0.00960074,64857.0,64856.0,0.08944314]
[1718904351561,0.028,64860.0,64857.0,0.003]
[1718904351790,0.028,64860.0,64857.0,0.08944314]
[1718904351791,0.00959974,64859.0,64857.0,0.08944314]
[1718904352018,0.00959974,64858.0,64857.0,0.08944314]
[1718904352251,0.00959974,64858.0,64855.0,0.09038914]
[1718904352480,0.00959974,64857.0,64856.0,0.08944314]
[1718904352705,0.00959974,64857.0,64856.0,0.009]
[1718904353200,0.00959974,64859.0,64856.0,0.009]
[1718904353429,0.00959974,64858.0,64856.0,0.009]
[1718904353642,0.00959974,64857.0,64856.0,0.009]
[1718904353895,0.001,64858.0,64856.0,0.009]
[1718904354127,0.00959974,64857.0,64856.0,0.009]
[1718904354597,0.007,64859.0,64855.0,0.000946]
[1718904354819,0.002,64858.0,64855.0,0.000946]
[1718904355051,0.01160014,64858.0,64855.0,0.000946]
[1718904355270,0.00960014,64857.0,64855.0,0.200946]
[1718904355744,0.00960014,64856.0,64855.0,0.200946]
[1718904355960,0.004,64857.0,64855.0,0.200946]
[1718904356191,0.00960014,64856.0,64855.0,0.000946]
[1718904357375,0.00960014,64857.0,64855.0,0.000946]
[1718904357571,0.006,64858.0,64855.0,0.000946]
[1718904357779,0.00960203,64857.0,64855.0,0.000946]
[1718904357991,0.00960203,64856.0,64855.0,0.001946]
[1718904358222,0.01260203,64856.0,64855.0,0.001946]
[1718904358400,0.15094553,64856.0,64855.0,0.000946]
[1718904358604,0.20329668,64856.0,64855.0,0.000946]
[1718904358808,0.06495318,64856.0,64855.0,0.000946]
[1718904359039,0.06195318,64856.0,64855.0,0.000946]
[1718904359499,0.10925203,64856.0,64853.0,0.00948199]
[1718904359678,0.1824,64854.0,64853.0,0.00948199]
[1718904359886,0.19200203,64854.0,64853.0,0.00948199]
[1718904360089,0.19200203,64854.0,64853.0,1e-08]
[1718904360292,0.33361088,64854.0,64853.0,1e-08]
[1718904360650,0.27505,64854.0,64853.0,1e-08]
[1718904360850,0.28465073,64854.0,64853.0,1e-08]
[1718904361677,0.29265073,64854.0,64853.0,1e-08]
[1718904361881,0.29765073,64854.0,64853.0,1e-08]
[1718904363796,0.2976489,64854.0,64853.0,1e-08]
[1718904364474,0.2049989,64854.0,64853.0,1e-08]
[1718904366005,0.22549879,64854.0,64853.0,1e-08]
[1718904366599,0.2049989,64854.0,64853.0,1e-08]
[1718904367209,0.2049989,64854.0,64853.0,0.29504503]
[1718904367432,0.0225989,64854.0,64853.0,0.38744503]
[1718904367638,0.0225989,64854.0,64853.0,0.59728817]
[1718904368865,0.0175989,64854.0,64853.0,0.74984929]
[1718904369513,0.008,64854.0,64853.0,0.74984929]
[1718904369796,0.01760045,64854.0,64853.0,0.74984929]
[1718904370046,0.01760045,64854.0,64853.0,0.82583422]
[1718904370309,0.00960045,64854.0,64853.0,0.83883422]
[1718904370514,0.02807597,64860.0,64859.0,0.30820644]
[1718904370723,0.03767658,64860.0,64859.0,0.46076756]
[1718904372466,0.02807597,64860.0,64859.0,0.46076756]
[1718904372665,0.03767434,64860.0,64859.0,0.46076756]
[1718904372910,0.03767434,64860.0,64857.0,0.29424314]
[1718904373066,0.03767434,64860.0,64856.0,0.2]
[1718904373067,0.00959837,64859.0,64856.0,0.2]
[1718904373267,0.00959837,64859.0,64858.0,0.08944314]
[1718904373514,0.00959837,64859.0,64858.0,0.30820644]
[1718904374516,0.01559837,64859.0,64858.0,0.30820644]
[1718904375459,0.01559837,64859.0,64857.0,0.2]
[1718904375660,0.00960216,64858.0,64857.0,0.2]
[1718904375896,0.00960216,64858.0,64857.0,0.30820644]
[1718904377990,0.02807597,64860.0,64859.0,0.2187633]
[1718904378119,0.03767919,64860.0,64857.0,0.201]
[1718904378339,0.00960322,64859.0,64857.0,0.201]
[1718904378535,0.02807597,64860.0,64857.0,0.201]
[1718904378763,0.00960096,64859.0,64857.0,0.001]
[1718904379017,0.00960096,64858.0,64857.0,0.001]
[1718904379336,0.11067365,64858.0,64857.0,0.001]
[1718904379556,0.09265,64857.0,64853.0,1e-08]
[1718904379806,0.00960096,64856.0,64853.0,1e-08]
[1718904380008,0.27505,64857.0,64853.0,1e-08]
[1718904380009,0.00960096,64855.0,64853.0,1e-08]
[1718904380229,0.00960096,64854.0,64853.0,1e-08]
[1718904381544,0.00960096,64854.0,64853.0,0.00300001]
[1718904381545,0.10325096,64854.0,64853.0,0.00300001]
[1718904381763,0.16118434,64854.0,64853.0,0.00400001]
[1718904381898,0.29935729,64854.0,64853.0,0.00400001]
[1718904382115,0.16118434,64854.0,64853.0,0.00300001]
[1718904382773,0.16018434,64854.0,64853.0,1e-08]
[1718904383087,0.16518434,64854.0,64853.0,1e-08]
[1718904383517,0.16518434,64854.0,64844.0,0.2]
[1718904383518,0.30335729,64854.0,64844.0,0.2]
[1718904383722,0.1824,64851.0,64844.0,0.2893744]
[1718904383929,0.00960096,64850.0,64846.0,0.2]
[1718904384132,0.00960096,64849.0,64846.0,0.2]
[1718904384336,0.00960096,64848.0,64846.0,0.2]
[1718904384536,0.00960096,64847.0,64845.0,0.0893744]
[1718904384645,0.00959549,64846.0,64845.0,0.0893744]
[1718904384850,0.00959549,64846.0,64845.0,0.3081377]
[1718904385898,0.00959549,64846.0,64845.0,0.0893744]
[1718904386118,0.00959549,64846.0,64845.0,0.001]
[1718904387204,0.01059549,64846.0,64845.0,0.004]
[1718904387850,0.01059571,64846.0,64845.0,0.004]
[1718904388457,0.28564571,64846.0,64845.0,0.004]
[1718904388583,0.48413082,64846.0,64845.0,0.004]
[1718904388788,0.34604175,64846.0,64845.0,0.004]
[1718904389672,0.34504175,64846.0,64845.0,0.001]
[1718904390075,0.35304175,64846.0,64845.0,0.001]
[1718904390415,0.35304175,64846.0,64836.0,0.2]
[1718904390616,0.09265,64844.0,64834.0,0.3145]
[1718904391021,0.09265,64842.0,64836.0,0.2]
[1718904391148,0.10224409,64842.0,64836.0,0.2]
[1718904391896,0.10224409,64842.0,64836.0,0.18529644]
[1718904392119,0.1824,64837.0,64836.0,0.18529644]
[1718904392330,0.19199409,64837.0,64836.0,0.18529644]
[1718904392755,0.19199409,64837.0,64834.0,0.1145]
[1718904392971,0.00959409,64836.0,64834.0,0.1145]
[1718904393173,0.00959409,64836.0,64834.0,0.29979644]
[1718904393527,0.00959409,64836.0,64834.0,0.1145]
[1718904393926,0.00959355,64835.0,64834.0,0.1145]
[1718904394132,0.00959355,64836.0,64834.0,0.1175]
[1718904394334,0.00959355,64835.0,64834.0,0.1175]
[1718904394773,0.00959355,64836.0,64834.0,0.1175]
[1718904395024,0.00959355,64835.0,64834.0,0.29979644]
[1718904395281,0.00959355,64836.0,64834.0,0.29979644]
[1718904395483,0.00959355,64836.0,64835.0,0.28034146]
[1718904395716,0.00959355,64836.0,64835.0,0.36971586]
[1718904395844,0.1824,64841.0,64836.0,0.29343414]
[1718904395845,0.001,64837.0,64836.0,0.29343414]
[1718904396071,0.1824,64841.0,64840.0,0.20405974]
[1718904396272,0.19199355,64841.0,64840.0,0.20405974]
[1718904396682,0.19199355,64841.0,64840.0,0.29785974]
[1718904396883,0.1824,64841.0,64840.0,0.29785974]
[1718904397091,0.19199291,64841.0,64840.0,0.29785974]
[1718904397321,0.19199232,64841.0,64840.0,0.29785974]
[1718904397521,0.19199232,64841.0,64840.0,0.27909644]
[1718904397763,0.19199232,64841.0,64840.0,0.29785974]
[1718904398280,0.00959275,64841.0,64840.0,0.0938]
[1718904398591,0.1824,64841.0,64840.0,0.0938]
[1718904398768,0.19199275,64841.0,64840.0,0.0938]
[1718904399079,0.29064275,64841.0,64835.0,0.18529644]
[1718904399275,0.1824,64836.0,64834.0,0.18529644]
[1718904399420,0.00959275,64835.0,64834.0,0.18529644]
[1718904399612,0.00959275,64835.0,64832.0,0.27467084]
[1718904400029,0.1824,64836.0,64832.0,0.27467084]
[1718904400030,0.00959168,64834.0,64832.0,0.27467084]
[1718904400230,0.00959168,64835.0,64832.0,0.27467084]
[1718904400437,0.00959168,64834.0,64833.0,0.18529644]
[1718904400677,0.1824,64836.0,64833.0,0.18529644]
[1718904401469,0.001,64835.0,64833.0,0.18529644]
[1718904401879,0.001,64835.0,64832.0,0.0923744]
[1718904401880,0.001,64835.0,64832.0,0.003]
[1718904402079,0.069805,64834.0,64832.0,0.003]
[1718904402350,0.12005,64833.0,64832.0,0.004]
[1718904402568,0.12005,64833.0,64832.0,0.003]
[1718904403303,0.09265,64833.0,64832.0,0.003]
[1718904403596,0.10665,64833.0,64832.0,0.003]
[1718904403947,0.10665,64833.0,64825.0,0.27467084]
[1718904403948,0.09265,64833.0,64826.0,0.18529644]
[1718904404188,0.1824,64829.0,64826.0,0.18529644]
[1718904404651,0.1824,64829.0,64828.0,0.18529644]
[1718904404927,0.535234,64839.0,64831.0,0.0893744]
[1718904405171,0.535234,64839.0,64835.0,0.07628172]
[1718904405450,0.442584,64839.0,64838.0,0.27467084]
[1718904405715,0.442584,64839.0,64838.0,0.36667084]
[1718904405962,0.442584,64839.0,64838.0,0.38543414]
[1718904406680,0.456584,64839.0,64838.0,0.38543414]
[1718904406933,0.442584,64839.0,64838.0,0.1813744]
[1718904407188,0.456584,64839.0,64838.0,0.092]
[1718904407900,0.465584,64839.0,64838.0,0.093]
[1718904408153,0.465584,64839.0,64838.0,0.001]
[1718904408916,0.023,64839.0,64838.0,0.001]
[1718904409409,0.11565,64839.0,64838.0,0.001]
[1718904410211,0.023,64839.0,64838.0,0.001]
[1718904410459,0.023,64839.0,64838.0,0.0929]
[1718904410705,0.03258547,64839.0,64838.0,0.0929]
[1718904411175,0.03258547,64839.0,64838.0,0.001]
[1718904412439,0.03258447,64839.0,64838.0,0.001]
[1718904413883,0.21498447,64839.0,64838.0,0.001]
[1718904414861,0.03258447,64839.0,64838.0,0.001]
[1718904415303,0.023,64839.0,64838.0,0.001]
[1718904415527,0.03258336,64839.0,64838.0,0.001]
[1718904416424,0.03258336,64839.0,64838.0,0.49563414]
[1718904416653,0.54101469,64849.0,64838.0,0.49563414]
[1718904416865,0.54101469,64849.0,64840.0,0.18529644]
[1718904416866,0.40313771,64849.0,64840.0,0.18529644]
[1718904417091,0.40313771,64849.0,64842.0,0.18529644]
[1718904417307,0.54101469,64849.0,64842.0,0.18529644]
[1718904417522,0.13787698,64848.0,64842.0,0.18529644]
[1718904417737,0.13787698,64848.0,64840.0,0.18529644]
[1718904417975,0.13787698,64848.0,64838.0,0.2905744]
[1718904417976,0.55501469,64849.0,64842.0,0.18529644]
[1718904418409,0.13787698,64848.0,64842.0,0.18529644]
[1718904418616,0.41713771,64849.0,64843.0,0.18529644]
[1718904418617,0.13787698,64847.0,64843.0,0.18529644]
[1718904418834,0.13787698,64847.0,64844.0,0.18529644]
[1718904419237,0.13787698,64847.0,64840.0,0.18629644]
[1718904419443,0.13787698,64846.0,64840.0,0.18629644]
[1718904419644,0.13787698,64847.0,64841.0,0.18529644]
[1718904419862,0.15187698,64847.0,64844.0,0.18529644]
[1718904420462,0.014,64847.0,64844.0,0.18529644]
[1718904421022,0.015,64847.0,64845.0,0.094]
[1718904421222,0.015,64847.0,64846.0,0.30019644]
[1718904421493,0.015,64847.0,64846.0,0.40833414]
[1718904421804,0.015,64847.0,64846.0,0.38957084]
[1718904422008,0.021,64847.0,64846.0,0.38957084]
[1718904422269,0.006,64847.0,64846.0,0.38957084]
[1718904422538,0.0547778,64849.0,64846.0,0.38957084]
[1718904422659,0.013,64847.0,64846.0,0.40833414]
[1718904422865,0.00086,64854.0,64853.0,0.0893744]
[1718904423108,0.00086,64854.0,64853.0,0.49893414]
[1718904424952,0.00086,64854.0,64853.0,0.50193414]
[1718904425363,0.00086,64854.0,64853.0,0.49893414]
[1718904425569,0.00186,64854.0,64853.0,0.49893414]
[1718904425773,0.02669858,64854.0,64853.0,0.50193414]
[1718904425981,0.00086,64854.0,64853.0,0.50193414]
[1718904426571,0.00086,64854.0,64853.0,0.50393414]
[1718904426974,0.00086,64854.0,64853.0,0.51393414]
[1718904427179,0.00086,64854.0,64853.0,0.50093414]
[1718904427386,0.00086,64854.0,64853.0,0.51093414]
[1718904427387,0.01045138,64854.0,64853.0,0.51093414]
[1718904427606,0.01045138,64854.0,64853.0,0.51593414]
[1718904427797,0.01045138,64854.0,64853.0,0.50593414]
[1718904427994,0.03443042,64854.0,64853.0,0.51593414]
[1718904429507,0.03443042,64854.0,64853.0,0.51393414]
[1718904429719,0.03543042,64854.0,64853.0,0.52193414]
[1718904430340,0.03542865,64854.0,64853.0,0.52193414]
[1718904430790,0.03542865,64854.0,64853.0,0.72168867]
[1718904431165,0.03642865,64854.0,64853.0,0.73268867]
[1718904433050,0.03642865,64854.0,64853.0,0.72268867]
[1718904433264,0.03642821,64854.0,64853.0,0.73268867]
[1718904434102,0.01244917,64854.0,64853.0,0.73268867]
[1718904435101,0.02713506,64860.0,64859.0,0.30343414]
[1718904435307,0.02713506,64860.0,64859.0,0.69983867]
[1718904435922,0.00086,64860.0,64859.0,0.69983867]
[1718904436410,0.00186,64860.0,64859.0,0.70983867]
[1718904436613,0.00186,64860.0,64859.0,0.69983867]
[1718904436809,0.00186,64860.0,64859.0,0.71183867]
[1718904437068,0.00286,64860.0,64859.0,0.71183867]
[1718904437272,0.00286,64860.0,64859.0,0.70183867]
[1718904438128,0.00286,64860.0,64859.0,0.71583867]
[1718904438709,0.00086,64860.0,64859.0,0.68983867]
[1718904438897,0.00086,64860.0,64859.0,0.67349526]
[1718904439117,0.00086,64860.0,64859.0,0.68449526]
[1718904441282,0.00086,64860.0,64859.0,0.67049526]
[1718904441689,0.0495,64859.0,64858.0,0.18529644]
[1718904442088,0.0495,64859.0,64852.0,0.211]
[1718904442089,0.0495,64859.0,64854.0,0.18529644]
[1718904442499,0.0495,64859.0,64857.0,0.18529644]
[1718904442898,0.04296,64860.0,64857.0,0.27467084]
[1718904442899,0.00086,64860.0,64857.0,0.27467084]
[1718904443302,0.0916,64858.0,64854.0,0.001]
[1718904443628,0.0916,64858.0,64851.0,0.18529644]
[1718904443806,0.0916,64858.0,64851.0,0.0893744]
[1718904444206,0.0916,64858.0,64854.0,0.18529644]
[1718904444951,0.0936,64858.0,64854.0,0.18529644]
[1718904445181,0.0936,64858.0,64857.0,0.001]
[1718904445374,0.10118239,64858.0,64854.0,0.18529644]
[1718904445579,0.00958239,64857.0,64854.0,0.18629644]
[1718904445787,0.00958239,64857.0,64854.0,0.001]
[1718904446946,0.00958239,64857.0,64851.0,0.27467084]
[1718904447363,0.01058239,64857.0,64851.0,0.27467084]
[1718904447551,0.00958239,64856.0,64851.0,0.27467084]
[1718904447954,0.00958239,64855.0,64852.0,0.18529644]
[1718904448153,0.00958239,64854.0,64851.0,0.27467084]
[1718904448357,0.0916,64858.0,64851.0,0.27467084]
[1718904448692,0.00086,64860.0,64849.0,0.0197093]
[1718904448693,0.0125826,64857.0,64856.0,0.42393414]
[1718904448972,0.0105826,64857.0,64856.0,0.67199526]
[1718904449611,0.0105826,64857.0,64856.0,0.87399526]
[1718904449810,0.00086,64860.0,64859.0,0.30343414]
[1718904450010,0.00086,64860.0,64859.0,0.97689526]
[1718904450443,0.00086,64860.0,64859.0,1.17889526]
[1718904450842,0.00086,64860.0,64859.0,0.97689526]
[1718904451045,0.00086,64860.0,64859.0,1.00633327]
[1718904451524,0.00086,64860.0,64859.0,1.02033327]
[1718904453374,0.18305816,64881.0,64872.0,0.29343414]
[1718904456497,0.02996317,64873.0,64872.0,0.29343414]
[1718904456842,0.00386,64873.0,64872.0,0.29343414]
[1718904457251,0.00086,64873.0,64872.0,0.29343414]
[1718904457656,0.00086,64873.0,64872.0,0.29443414]
[1718904458279,0.11516,64873.0,64872.0,0.001]
[1718904458494,0.11516,64873.0,64859.0,0.0893744]
[1718904458495,0.312076,64873.0,64859.0,0.0893744]
[1718904458691,0.1824,64868.0,64858.0,0.18529644]
[1718904458974,0.1824,64868.0,64858.0,0.27467084]
[1718904458975,0.1143,64867.0,64858.0,0.27467084]
[1718904459263,0.1143,64867.0,64858.0,0.18529644]
[1718904459472,0.1143,64867.0,64859.0,0.0893744]
[1718904459676,0.1143,64867.0,64859.0,0.0903744]
[1718904459883,0.1143,64867.0,64859.0,0.001]
[1718904459884,0.03925277,64866.0,64859.0,0.001]
[1718904460101,0.00958277,64865.0,64859.0,0.001]
[1718904460534,0.1173,64867.0,64859.0,0.001]
[1718904460535,0.00958272,64864.0,64859.0,0.001]
[1718904460740,0.00958272,64863.0,64858.0,0.18529644]
[1718904460944,0.00958272,64862.0,64854.0,0.0893744]
[1718904461299,0.01919827,64861.0,64854.0,0.0893744]
[1718904461502,0.00958272,64860.0,64854.0,0.0893744]
[1718904461724,0.00958272,64860.0,64854.0,0.27467084]
[1718904461918,0.00958272,64859.0,64854.0,0.27467084]
[1718904462183,0.00958272,64858.0,64856.0,0.18529644]
[1718904462340,0.00958272,64857.0,64856.0,0.18529644]
[1718904462540,0.00958272,64862.0,64856.0,0.18529644]
[1718904463445,0.00958272,64862.0,64856.0,0.19729644]
[1718904463655,0.001,64858.0,64857.0,0.18529644]
[1718904464264,0.01058192,64858.0,64857.0,0.18529644]
[1718904464979,0.00958192,64858.0,64857.0,0.18529644]
[1718904465322,0.1824,64863.0,64857.0,0.18529644]
[1718904465323,0.00958192,64862.0,64857.0,0.18529644]
[1718904465523,0.00958192,64861.0,64857.0,0.18624244]
[1718904465859,0.00958192,64860.0,64858.0,0.18529644]
[1718904466068,0.00958192,64859.0,64858.0,0.18529644]
[1718904466269,0.00958192,64862.0,64857.0,0.18624244]
[1718904466480,0.00958192,64862.0,64857.0,0.000946]
[1718904466678,0.00958192,64862.0,64857.0,0.014946]
[1718904466893,0.00958192,64862.0,64857.0,0.011946]
[1718904467097,0.00958192,64862.0,64857.0,0.000946]
[1718904467464,0.00958192,64862.0,64857.0,0.005946]
[1718904467465,0.2967,64858.0,64857.0,0.005946]
[1718904467670,0.30628192,64858.0,64857.0,0.005946]
[1718904468261,0.12388192,64858.0,64857.0,0.005946]
[1718904468459,0.00958192,64858.0,64857.0,0.005946]
[1718904468662,0.13804746,64861.0,64858.0,0.18529644]
[1718904468840,0.00958216,64860.0,64859.0,0.18529644]
[1718904469137,0.00958216,64861.0,64858.0,0.18529644]
[1718904469443,0.00958216,64860.0,64857.0,0.18824244]
[1718904469683,0.097095,64863.0,64857.0,0.18624244]
[1718904469898,0.00958166,64859.0,64858.0,0.001]
[1718904470100,0.006,64860.0,64859.0,0.001]
[1718904470275,0.01558169,64860.0,64859.0,0.001]
[1718904470911,0.01658169,64860.0,64859.0,0.001]
[1718904471242,0.01658169,64860.0,64857.0,0.18724244]
[1718904471443,0.00958169,64859.0,64857.0,0.18724244]
[1718904471697,0.00958169,64859.0,64857.0,0.002946]
[1718904471887,0.00958169,64859.0,64857.0,0.001946]
[1718904472113,0.0485,64858.0,64851.0,0.0893744]
[1718904472269,0.00958169,64857.0,64852.0,0.18529644]
[1718904472626,0.0485,64858.0,64852.0,0.18529644]
[1718904472627,0.00958169,64856.0,64852.0,0.18529644]
[1718904472747,0.0485,64858.0,64852.0,0.18529644]
[1718904473015,0.0485,64858.0,64851.0,0.0893744]
[1718904473016,0.0485,64858.0,64857.0,0.001]
[1718904473219,0.05808132,64858.0,64857.0,0.001]
[1718904474091,0.05808147,64858.0,64857.0,0.001]
[1718904474624,0.05908147,64858.0,64857.0,0.002]
[1718904474916,0.05908147,64858.0,64857.0,0.001]
[1718904475291,0.06508147,64858.0,64857.0,0.002]
[1718904475903,0.0555,64858.0,64857.0,0.002]
[1718904476066,0.20316511,64858.0,64857.0,0.002]
[1718904476264,0.06508073,64858.0,64857.0,0.002]
[1718904476870,0.06508073,64858.0,64853.0,0.18529644]
[1718904477092,0.00958073,64857.0,64851.0,0.0893744]
[1718904477288,0.14766511,64856.0,64849.0,0.18624244]
[1718904477500,0.00958073,64855.0,64849.0,0.27561684]
[1718904477725,0.00958073,64854.0,64849.0,0.27561684]
[1718904478058,0.0555,64858.0,64851.0,0.0893744]
[1718904478059,0.00958073,64853.0,64851.0,0.0893744]
[1718904478330,0.0495,64858.0,64851.0,0.0893744]
[1718904478331,0.00958073,64852.0,64851.0,0.0903744]
[1718904478738,0.00958073,64852.0,64851.0,0.27467084]
[1718904478941,0.0485,64858.0,64852.0,0.18529644]
[1718904479154,0.0485,64858.0,64851.0,0.1081377]
[1718904479155,0.00957785,64856.0,64854.0,0.18529644]
[1718904479387,0.00957785,64855.0,64854.0,0.18529644]
[1718904479788,0.00957785,64857.0,64854.0,0.18529644]
[1718904480016,0.00957785,64856.0,64854.0,0.18529644]
[1718904480226,0.00957785,64855.0,64854.0,0.18529644]
[1718904480402,0.00957785,64855.0,64852.0,0.18529644]
[1718904480624,0.00957785,64854.0,64853.0,0.18529644]
[1718904481002,0.00957785,64854.0,64851.0,0.27467084]
[1718904481204,0.00957785,64853.0,64851.0,0.27467084]
[1718904481404,0.00957785,64852.0,64851.0,0.27467084]
[1718904481604,0.008,64856.0,64854.0,0.001]
[1718904481767,0.00958033,64855.0,64854.0,0.001]
[1718904481977,0.008,64856.0,64854.0,0.001]
[1718904482178,0.008,64856.0,64849.0,0.000946]
[1718904482179,0.12168055,64855.0,64849.0,0.000946]
[1718904482381,0.1824,64852.0,64849.0,0.000946]
[1718904482601,0.00958055,64851.0,64849.0,0.000946]
[1718904482888,0.00958055,64850.0,64849.0,0.000946]
[1718904483150,0.00958055,64851.0,64849.0,0.000946]
[1718904483305,0.00958055,64850.0,64849.0,0.000946]
[1718904483509,0.00958055,64851.0,64849.0,0.000946]
[1718904483920,0.00958055,64850.0,64849.0,0.000946]
[1718904484232,0.00958055,64851.0,64849.0,0.000946]
[1718904484396,0.13804136,64858.0,64852.0,0.27467084]
[1718904484624,0.00958151,64857.0,64856.0,0.29343414]
[1718904485021,0.00958198,64857.0,64856.0,0.29343414]
[1718904485692,0.02341826,64866.0,64858.0,0.01]
[1718904485881,0.02341826,64866.0,64859.0,0.18529644]
[1718904487131,0.1,64868.0,64861.0,0.18529644]
[1718904487339,0.003,64866.0,64863.0,0.18529644]
[1718904487505,0.003,64866.0,64865.0,0.18529644]
[1718904487866,0.003,64866.0,64865.0,0.20405974]
[1718904488073,0.011,64866.0,64865.0,0.20405974]
[1718904488497,0.003,64866.0,64865.0,0.20405974]
[1718904488697,0.05946605,64868.0,64866.0,0.27467084]
[1718904489483,0.003,64868.0,64867.0,0.20405974]
[1718904490255,0.06094507,64873.0,64870.0,0.18529644]
[1718904490655,0.06094507,64873.0,64869.0,0.1843744]
[1718904490878,0.06094507,64873.0,64867.0,0.0893744]
[1718904491253,0.006,64868.0,64867.0,0.0893744]
[1718904491458,0.06094507,64873.0,64866.0,0.097]
[1718904491459,0.06094507,64873.0,64866.0,0.001]
[1718904491664,0.19893113,64873.0,64869.0,0.0893744]
[1718904491907,0.20493113,64873.0,64870.0,0.001]
[1718904492078,0.19893113,64873.0,64869.0,0.0893744]
[1718904492290,0.20193113,64873.0,64870.0,0.001]
[1718904492487,0.06394507,64873.0,64870.0,0.001]
[1718904492700,0.06386726,64873.0,64870.0,0.001]
[1718904493221,0.06386726,64873.0,64869.0,0.0903744]
[1718904493222,0.20485332,64873.0,64869.0,0.0903744]
[1718904493422,0.20785332,64873.0,64869.0,0.0913744]
[1718904493605,0.20785332,64873.0,64869.0,0.27667084]
[1718904493809,0.06986726,64873.0,64869.0,0.0913744]
[1718904494014,0.20782241,64873.0,64870.0,0.18529644]
[1718904494252,0.20782241,64873.0,64871.0,0.18529644]
[1718904494452,0.06986726,64873.0,64872.0,0.18529644]
[1718904494790,0.06986726,64873.0,64870.0,0.18529644]
[1718904494791,0.06386726,64873.0,64870.0,0.18529644]
[1718904494984,0.06686726,64873.0,64871.0,0.18529644]
[1718904495196,0.06086726,64873.0,64872.0,0.18529644]
[1718904495392,0.10451894,64873.0,64871.0,0.18529644]
[1718904495598,0.06986726,64873.0,64872.0,0.18629644]
[1718904495833,0.25140397,64873.0,64870.0,0.001]
[1718904496046,0.0234,64870.0,64858.0,0.2115744]
[1718904496262,0.0234,64870.0,64854.0,0.18529644]
[1718904496263,0.1824,64862.0,64856.0,0.0893744]
[1718904496459,0.04958156,64861.0,64856.0,0.0893744]
[1718904496820,0.04958156,64860.0,64856.0,0.0893744]
[1718904497078,0.0400044,64859.0,64856.0,0.0893744]
[1718904497288,0.0400044,64858.0,64856.0,0.0893744]
[1718904497495,0.04958018,64857.0,64856.0,0.27467084]
[1718904497893,0.04958018,64857.0,64856.0,0.29343414]
[1718904498612,0.04958018,64857.0,64856.0,0.29643414]
[1718904498824,0.04958018,64857.0,64856.0,0.30443414]
[1718904499022,0.04958018,64857.0,64856.0,0.28567084]
[1718904499220,0.04958018,64857.0,64856.0,0.27767084]
[1718904499648,0.04958018,64857.0,64856.0,0.28267084]
[1718904499981,0.04957698,64857.0,64856.0,0.28267084]
[1718904500766,0.04957698,64857.0,64856.0,0.30143414]
[1718904501412,0.04957698,64857.0,64856.0,0.69822039]
[1718904501625,0.04957698,64857.0,64856.0,0.79322039]
[1718904501821,0.04957698,64857.0,64856.0,0.80322039]
[1718904503178,0.04957713,64857.0,64856.0,0.80322039]
[1718904506027,0.0400044,64857.0,64856.0,0.80322039]
[1718904506318,0.04958083,64857.0,64856.0,1.00522039]
[1718904507892,0.00078219,64873.0,64869.0,0.01]
[1718904508104,0.00078219,64873.0,64872.0,0.51883414]
[1718904508303,0.00078219,64873.0,64872.0,0.67139526]
[1718904509037,0.00078219,64873.0,64872.0,0.66139526]
[1718904509260,0.00178219,64873.0,64872.0,0.71353867]
[1718904509458,0.00078219,64873.0,64872.0,0.71353867]
[1718904509665,0.00078219,64873.0,64872.0,0.72353867]
[1718904509839,0.00178219,64873.0,64872.0,0.73553867]
[1718904510041,0.00178219,64873.0,64872.0,0.74953867]
[1718904514561,0.00178219,64873.0,64872.0,0.84953867]
[1718904515830,0.00178219,64873.0,64872.0,0.83553867]
[1718904516262,0.00178219,64873.0,64872.0,0.83753867]
[1718904516563,0.00278219,64873.0,64872.0,0.85153867]
[1718904516924,0.00278219,64873.0,64872.0,0.85253867]
[1718904517545,0.00278219,64873.0,64872.0,0.85153867]
[1718904519927,0.01236256,64873.0,64872.0,0.85153867]
[1718904520323,0.01236256,64873.0,64872.0,0.84153867]
[1718904520526,0.01236256,64873.0,64872.0,0.78939526]
[1718904521178,0.00278219,64873.0,64872.0,0.78939526]
[1718904521741,0.00178219,64873.0,64872.0,0.77539526]
[1718904521940,0.01136544,64873.0,64872.0,0.77539526]
[1718904522114,0.01136544,64873.0,64872.0,0.78539526]
[1718904522323,0.01036544,64873.0,64872.0,0.77139526]
[1718904522525,0.01036544,64873.0,64872.0,0.55599526]
[1718904522860,0.01036544,64873.0,64872.0,0.56299526]
[1718904523064,0.01036544,64873.0,64872.0,0.55599526]
[1718904523273,0.01036544,64873.0,64872.0,0.54599526]
[1718904523495,0.01036544,64873.0,64872.0,0.56299526]
[1718904523694,0.01036544,64873.0,64872.0,0.55599526]
[1718904524102,0.01036544,64873.0,64872.0,0.56299526]
[1718904524299,0.01036544,64873.0,64872.0,0.64091479]
[1718904524929,0.01036544,64873.0,64872.0,0.63091479]
[1718904525390,0.01036544,64873.0,64872.0,0.64091479]
[1718904525558,0.01036544,64873.0,64872.0,0.65091479]
[1718904525866,0.01036544,64873.0,64872.0,0.64091479]
[1718904526065,0.01036544,64873.0,64872.0,0.65091479]
[1718904526670,0.01036544,64873.0,64872.0,0.64091479]
[1718904527281,0.00078219,64873.0,64872.0,0.64091479]
[1718904528266,0.01046557,64873.0,64872.0,0.64091479]
[1718904529977,0.00078219,64873.0,64872.0,0.65091479]
[1718904531033,0.00078219,64873.0,64872.0,0.76511479]
[1718904531234,0.00078219,64873.0,64872.0,0.85721479]